bitfinex/quotes_SOLUSD_20250819
["timestamp","ask_amount","ask_price","bid_price","bid_amount"]
[1755600134152,57.04951061,182.16,182.15,0.03]
[1755600134348,51.11978422,182.16,182.15,0.03]
[1755600135378,51.13943452,182.16,182.15,0.03]
[1755600135969,56.62878133,182.16,182.15,0.03]
[1755600137079,50.69905494,182.16,182.15,0.03]
[1755600137398,56.62878133,182.16,182.15,0.03]
[1755600138478,5.49027942,182.15,182.13,0.68]
[1755600138684,183.13910193,182.14,182.13,0.03]
[1755600138852,41.10621557,182.12,182.09,0.68]
[1755600139057,55.76080827,182.12,182.09,0.68]
[1755600139259,55.76080827,182.12,182.09,0.03]
[1755600139585,51.13910193,182.12,182.11,0.68]
[1755600139893,36.03288636,182.12,182.11,0.68]
[1755600140483,39.72980862,182.12,182.11,0.68]
[1755600143561,60.32690932,182.12,182.11,0.03]
[1755600143784,64.94861566,182.12,182.11,0.03]
[1755600144081,60.32690932,182.12,182.11,0.03]
[1755600144490,60.33260262,182.12,182.11,0.03]
[1755600144987,64.95464698,182.12,182.11,0.03]
[1755600145183,60.33260262,182.12,182.11,0.03]
[1755600145785,54.84171749,182.12,182.11,0.03]
[1755600146091,54.84171749,182.12,182.11,0.68]
[1755600149808,93.46171749,182.12,182.11,0.68]
[1755600149983,87.5319911,182.12,182.11,0.68]
[1755600150303,93.46171749,182.12,182.11,0.68]
[1755600152676,93.46171749,182.12,182.11,0.03]
[1755600153779,93.46083578,182.12,182.11,0.03]
[1755600153977,93.44083578,182.12,182.11,0.03]
[1755600154491,98.06288014,182.12,182.11,0.68]
[1755600154691,98.06337332,182.12,182.11,0.68]
[1755600155693,98.04337332,182.12,182.11,0.68]
[1755600156282,98.04337332,182.12,182.11,0.03]
[1755600156907,98.02359285,182.12,182.11,0.03]
[1755600157810,98.02359285,182.12,182.11,0.68]
[1755600157811,93.40154849,182.12,182.11,0.68]
[1755600157989,93.40154849,182.12,182.11,0.03]
[1755600158179,98.89243362,182.12,182.11,0.03]
[1755600158585,103.51447798,182.12,182.11,0.03]
[1755600159109,15.10621557,182.11,182.09,0.03]
[1755600159305,199.40154849,182.1,182.09,0.03]
[1755600159813,204.89341725,182.1,182.09,0.03]
[1755600160398,209.51582623,182.1,182.09,0.03]
[1755600160798,41.10621557,182.08,182.07,0.03]
[1755600161002,93.40192906,182.08,182.07,0.03]
[1755600161821,15.10621557,182.07,182.06,0.03]
[1755600162026,28.90192906,182.07,182.04,0.03]
[1755600162198,74.03215067,182.06,182.04,0.03]
[1755600162397,73.97215067,182.06,182.04,0.03]
[1755600162820,73.96943284,182.06,182.04,0.03]
[1755600163133,78.58675624,182.06,182.04,0.03]
[1755600163833,84.07738973,182.06,182.04,0.03]
[1755600165406,86.28082173,182.06,182.04,0.03]
[1755600165612,86.27765307,182.06,182.04,0.03]
[1755600166205,15.10621557,182.05,182.04,0.03]
[1755600166398,28.83398135,182.05,182.04,0.75]
[1755600166585,22.90425496,182.05,182.04,0.75]
[1755600166785,67.39398135,182.05,182.04,0.75]
[1755600169005,72.88697777,182.05,182.04,0.75]
[1755600170092,67.39398135,182.05,182.04,0.75]
[1755600170714,72.88697777,182.05,182.04,0.75]
[1755600171219,75.09028777,182.05,182.04,0.75]
[1755600172028,72.88697777,182.05,182.04,0.75]
[1755600172530,67.38962105,182.05,182.04,0.75]
[1755600172833,72.88217725,182.05,182.04,0.75]
[1755600173133,75.08548725,182.05,182.04,0.75]
[1755600173625,75.08548725,182.05,182.04,0.03]
[1755600174529,85.68753495,182.05,182.04,0.03]
[1755600174725,47.03594196,182.03,182.02,0.03]
[1755600175025,93.38918083,182.03,182.02,0.03]
[1755600175434,95.59297683,182.03,182.02,0.03]
[1755600175806,100.26529814,182.03,182.02,0.03]
[1755600176141,100.20529814,182.03,182.02,0.03]
[1755600176315,105.69889809,182.03,182.02,0.03]
[1755600177023,105.69889809,182.03,182.01,0.03]
[1755600177024,15.10621557,182.02,182.01,0.03]
[1755600177224,28.82918083,182.02,182.01,0.03]
[1755600177897,34.32308259,182.02,182.01,0.03]
[1755600178101,26.0,182.0,181.99,0.03]
[1755600178303,26.0,182.0,181.94,0.2]
[1755600178304,26.0,181.96,181.94,0.2]
[1755600178615,38.6,181.95,181.94,8.64965011]
[1755600178804,37.16,181.95,181.94,8.64965011]
[1755600179005,37.16,181.95,181.94,9.36965011]
[1755600179206,37.16,181.95,181.94,15.2993765]
[1755600179531,26.0,181.97,181.96,8.44965011]
[1755600179709,64.62,181.97,181.96,8.44965011]
[1755600179908,64.62,181.97,181.96,9.16965011]
[1755600180527,26.0,181.97,181.96,9.16965011]
[1755600180728,64.62,181.97,181.96,9.16965011]
[1755600180939,38.62,181.97,181.96,9.16965011]
[1755600181232,132.0,182.02,181.97,8.44965011]
[1755600181532,26.0,181.99,181.98,9.16965011]
[1755600181838,70.54972639,181.99,181.96,8.44965011]
[1755600182004,10.02308235,181.98,181.96,8.44965011]
[1755600182205,10.02308235,181.98,181.94,0.2]
[1755600182206,26.0,181.95,181.94,0.2]
[1755600182407,93.45437504,181.95,181.94,0.2]
[1755600182616,94.12437504,181.95,181.94,0.2]
[1755600183198,93.45437504,181.95,181.94,0.2]
[1755600183430,93.45525835,181.95,181.94,0.2]
[1755600183932,103.35951577,181.95,181.94,0.2]
[1755600184103,104.02951577,181.95,181.94,0.2]
[1755600185021,93.45525835,181.95,181.94,0.2]
[1755600185338,74.70440729,181.95,181.94,0.92]
[1755600186423,68.7746809,181.95,181.94,0.92]
[1755600186933,74.70440729,181.95,181.94,0.92]
[1755600188124,74.70440729,181.95,181.94,0.2]
[1755600188523,74.70440729,181.95,181.94,0.88]
[1755600189652,64.66,181.95,181.94,0.88]
[1755600189817,26.0,181.95,181.94,9.32965011]
[1755600190022,64.66,181.95,181.94,9.32965011]
[1755600191346,64.72,181.95,181.94,9.32965011]
[1755600191825,38.72,181.95,181.94,9.32965011]
[1755600192025,0.06,181.95,181.94,9.32965011]
[1755600192341,38.72,181.95,181.94,9.32965011]
[1755600193843,0.06,181.95,181.94,9.32965011]
[1755600195928,0.06,181.95,181.94,15.2593765]
[1755600197739,0.06,181.95,181.94,20.75569396]
[1755600199456,0.06,181.95,181.94,15.2593765]
[1755600201056,0.06,181.95,181.94,20.75569396]
[1755600202446,0.06,181.95,181.94,15.2593765]
[1755600204039,0.06,181.95,181.94,20.75569396]
[1755600205360,0.06,181.95,181.94,35.86190953]
[1755600206259,0.06,181.95,181.94,38.06473453]
[1755600207258,0.06,181.95,181.94,38.61436627]
[1755600208858,0.06,181.95,181.94,64.61436627]
[1755600209067,0.06,181.95,181.94,103.21436627]
[1755600214243,0.06,181.97,181.95,15.10621557]
[1755600214552,0.06,181.97,181.96,14.3793765]
[1755600214859,0.06,181.97,181.96,15.0593765]
[1755600215554,0.06,181.97,181.96,17.2620805]
[1755600216157,0.06,181.97,181.96,22.75779384]
[1755600218246,0.06,181.97,181.96,61.31779384]
[1755600218645,0.06,181.97,181.96,76.42400941]
[1755600219954,0.06,181.99,181.98,34.44965011]
[1755600220139,0.06,181.99,181.98,84.41448585]
[1755600220459,0.06,181.99,181.98,85.09448585]
[1755600220645,0.06,181.99,181.98,87.29694685]
[1755600224563,0.06,181.99,181.98,85.09448585]
[1755600228143,0.06,181.99,181.98,100.20070142]
[1755600229077,0.06,181.99,181.98,102.40304142]
[1755600229849,0.72,181.99,181.98,63.18304142]
[1755600230055,0.72,181.99,181.98,94.02559207]
[1755600230768,0.72,181.99,181.98,14.3793765]
[1755600230969,0.72,181.99,181.98,52.9393765]
[1755600231165,0.72,181.99,181.98,47.00965011]
[1755600231468,0.72,181.99,181.98,52.9393765]
[1755600232174,0.72,181.99,181.98,42.9393765]
[1755600233661,0.06,181.99,181.98,43.6193765]
[1755600233847,0.06,181.99,181.98,42.9393765]
[1755600234871,0.72,181.99,181.98,42.9393765]
[1755600236141,0.72,181.99,181.98,44.48972639]
[1755600237757,0.72,181.99,181.98,38.56]
[1755600238357,0.72,181.99,181.98,44.48972639]
[1755600238557,0.06,181.99,181.98,44.48972639]
[1755600238854,0.72,181.99,181.98,44.48972639]
[1755600240356,0.06,181.99,181.98,44.48972639]
[1755600240759,0.72,181.99,181.98,44.48972639]
[1755600242679,0.72,181.99,181.94,6.189726]
[1755600242850,6.64972639,181.99,181.94,6.189726]
[1755600243179,6.58972639,181.98,181.94,44.709726]
[1755600243349,0.66,181.97,181.95,0.03]
[1755600243670,0.66,181.96,181.95,0.03]
[1755600248576,0.06,181.99,181.95,5.95972639]
[1755600248761,0.06,181.99,181.98,5.92972639]
[1755600249969,0.72,181.99,181.97,38.52]
[1755600250280,0.66,181.98,181.97,38.52]
[1755600250480,0.06,181.99,181.97,44.44972639]
[1755600252680,0.06,181.99,181.97,45.10972639]
[1755600252861,0.06,181.99,181.98,5.92972639]
[1755600253060,0.06,181.99,181.98,6.58972639]
[1755600253371,0.06,181.99,181.97,38.52]
[1755600253592,0.72,181.99,181.98,5.92972639]
[1755600254087,0.72,181.99,181.97,38.52]
[1755600254672,0.66,181.98,181.97,38.52]
[1755600256174,0.06,181.99,181.97,38.52]
[1755600256487,0.66,181.98,181.97,38.52]
[1755600257385,0.66,181.98,181.95,0.03]
[1755600257592,6.58972639,181.98,181.95,0.03]
[1755600258092,0.66,181.97,181.95,0.03]
[1755600258697,0.66,181.96,181.95,0.03]
[1755600261895,0.66,181.98,181.95,0.03]
[1755600262397,0.66,181.97,181.95,0.03]
[1755600265283,0.66,181.96,181.95,0.03]
[1755600266775,0.66,181.98,181.95,0.03]
[1755600267198,4.76833591,181.98,181.95,0.03]
[1755600267676,0.66,181.97,181.95,0.03]
[1755600268818,5.92972639,181.96,181.95,0.03]
[1755600269168,0.66,181.96,181.95,0.03]
[1755600271778,6.58972639,181.96,181.95,0.03]
[1755600273474,10.69960946,181.96,181.95,0.03]
[1755600280591,10.70013375,181.96,181.95,0.03]
[1755600281117,6.58972639,181.96,181.95,0.03]
[1755600281716,10.0404437,181.96,181.95,0.03]
[1755600282408,4.11071731,181.96,181.95,0.03]
[1755600282783,4.11071731,181.96,181.95,0.72]
[1755600282989,0.06,181.98,181.95,0.72]
[1755600283213,4.17069414,181.98,181.96,0.69]
[1755600283517,4.85069414,181.98,181.95,0.03]
[1755600283900,4.85069414,181.98,181.95,0.72]
[1755600284623,4.17069414,181.98,181.96,0.69]
[1755600285901,0.06,181.98,181.97,0.69]
[1755600286102,0.06,181.98,181.95,6.64972639]
[1755600286427,0.06,181.98,181.96,0.69]
[1755600286998,4.17297869,181.98,181.96,0.69]
[1755600287190,4.17297869,181.98,181.95,5.95972639]
[1755600287191,0.06,181.98,181.95,5.95972639]
[1755600287421,4.17382986,181.98,181.97,0.69]
[1755600288089,4.17382986,181.98,181.95,5.95972639]
[1755600288289,4.17382986,181.98,181.96,0.69]
[1755600288505,4.17382986,181.98,181.97,0.69]
[1755600289831,5.98972639,181.98,181.95,0.03]
[1755600290122,5.92972639,181.96,181.95,0.03]
[1755600290323,10.0438793,181.96,181.95,0.03]
[1755600290623,10.72428434,181.96,181.95,0.03]
[1755600293119,4.79455795,181.96,181.95,0.03]
[1755600293417,10.72428434,181.96,181.95,0.03]
[1755600295318,4.79455795,181.96,181.95,0.03]
[1755600295931,4.11455795,181.96,181.95,0.03]
[1755600296601,3.7602828,181.98,181.95,0.72]
[1755600296921,4.79484708,181.97,181.95,0.03]
[1755600297213,10.37000919,181.98,181.95,0.03]
[1755600297527,4.11545253,181.97,181.95,0.03]
[1755600297701,4.11545253,181.97,181.96,0.69]
[1755600298315,4.11545253,181.97,181.95,0.03]
[1755600298614,4.11545253,181.97,181.95,0.72]
[1755600298828,4.11545253,181.97,181.95,0.03]
[1755600299013,0.06,181.98,181.96,6.61972639]
[1755600299209,4.17644421,181.98,181.96,0.69]
[1755600299402,0.06,181.98,181.96,0.69]
[1755600300423,0.06,181.98,181.97,6.61972639]
[1755600300811,0.06,181.98,181.97,0.69]
[1755600301015,0.06,181.98,181.97,6.61972639]
[1755600302335,0.06,181.98,181.97,21.72594196]
[1755600302931,0.06,181.98,181.97,27.22135329]
[1755600307139,0.06,181.98,181.97,29.42381529]
[1755600308122,0.06,182.0,181.98,15.10621557]
[1755600308325,0.06,182.0,181.99,21.03594196]
[1755600308834,0.06,182.0,181.99,21.73594196]
[1755600309719,0.06,182.0,181.99,23.93840396]
[1755600311220,0.06,182.0,181.99,29.43321136]
[1755600312941,0.06,182.0,181.99,67.89321136]
[1755600315238,0.06,182.0,181.99,61.69840396]
[1755600315539,0.06,182.0,181.99,67.89321136]
[1755600316136,0.06,182.0,181.99,67.19321136]
[1755600316720,0.78,182.0,181.99,2.202462]
[1755600317034,0.78,182.0,181.98,5.92972639]
[1755600318720,0.06,182.0,181.98,5.92972639]
[1755600318922,0.72,181.99,181.98,5.92972639]
[1755600319842,0.06,182.0,181.98,5.92972639]
[1755600320034,0.78,182.0,181.98,5.92972639]
[1755600321218,0.78,182.0,181.98,8.13243039]
[1755600321420,0.06,182.0,181.98,5.92972639]
[1755600321620,0.72,181.99,181.98,5.92972639]
[1755600321921,0.06,182.0,181.98,5.92972639]
[1755600322314,0.06,182.0,181.99,6.62972639]
[1755600322636,0.06,182.0,181.99,45.08972639]
[1755600322839,0.06,182.0,181.99,44.38972639]
[1755600323026,0.78,182.0,181.99,44.38972639]
[1755600323337,0.06,182.0,181.99,44.38972639]
[1755600323536,0.78,182.0,181.99,44.38972639]
[1755600323841,0.06,182.0,181.99,44.38972639]
[1755600324740,0.78,182.0,181.98,2.202704]
[1755600325075,0.78,182.0,181.98,38.46]
[1755600325227,0.72,181.99,181.98,44.38972639]
[1755600325615,0.06,182.0,181.98,44.41972639]
[1755600326228,0.06,182.0,181.98,38.49]
[1755600326423,0.06,182.0,181.98,44.41972639]
[1755600326640,0.72,181.99,181.98,0.03]
[1755600327512,6.64972639,181.99,181.98,0.03]
[1755600329345,10.75223256,181.99,181.98,0.03]
[1755600330141,14.44376254,181.99,181.98,0.03]
[1755600331749,8.51357503,181.99,181.98,0.03]
[1755600331951,10.75177144,181.99,181.98,0.03]
[1755600334548,6.64972639,181.99,181.98,0.03]
[1755600334848,10.75062998,181.99,181.98,0.03]
[1755600335541,6.64972639,181.99,181.98,0.03]
[1755600335748,26.0,181.99,181.98,0.03]
[1755600336337,6.70972639,182.0,181.98,0.03]
[1755600337567,0.06,182.0,181.98,0.73]
[1755600337866,0.06,182.0,181.99,0.7]
[1755600338070,0.06,182.0,181.98,0.69]
[1755600339162,0.06,182.0,181.99,0.66]
[1755600340875,0.06,182.0,181.98,5.95972639]
[1755600341088,0.76,182.0,181.98,0.03]
[1755600341761,0.7,181.99,181.98,0.03]
[1755600342355,6.62972639,181.99,181.98,0.03]
[1755600342868,0.7,181.99,181.98,0.03]
[1755600343273,6.62972639,181.99,181.98,0.03]
[1755600343470,10.73501158,181.99,181.98,0.03]
[1755600344080,10.73510943,181.99,181.98,0.03]
[1755600344466,6.62972639,181.99,181.98,0.03]
[1755600344668,10.73496916,181.99,181.98,0.03]
[1755600346686,14.42949355,181.99,181.98,0.03]
[1755600350264,14.42773786,181.99,181.98,0.03]
[1755600353271,14.42664037,181.99,181.98,0.03]
[1755600353883,14.42641293,181.99,181.98,0.03]
[1755600356371,14.42726854,181.99,181.98,0.03]
[1755600358075,19.92207594,181.99,181.98,0.03]
[1755600358396,26.0,181.97,181.96,0.03]
[1755600358570,78.34726854,181.97,181.96,0.03]
[1755600359086,79.04726854,181.97,181.96,0.03]
[1755600360081,84.54267987,181.97,181.96,0.03]
[1755600360593,79.04726854,181.97,181.96,0.03]
[1755600360906,84.54267987,181.97,181.96,0.03]
[1755600361676,84.54786198,181.97,181.96,0.03]
[1755600362283,84.54752603,181.97,181.96,0.03]
[1755600362620,84.54700716,181.97,181.96,0.03]
[1755600362768,15.10621557,181.96,181.94,0.2]
[1755600362969,93.4978114,181.95,181.94,0.2]
[1755600363273,94.1978114,181.95,181.94,0.2]
[1755600363483,93.4978114,181.95,181.94,0.2]
[1755600363688,78.39159583,181.95,181.94,0.2]
[1755600364896,73.69382678,181.95,181.94,0.2]
[1755600365076,47.03594196,181.94,181.93,0.03]
[1755600365272,55.5378114,181.94,181.93,0.03]
[1755600365889,29.5378114,181.94,181.93,0.03]
[1755600366094,158.96566835,181.93,181.91,0.03]
[1755600366417,78.04205679,181.92,181.91,0.03]
[1755600366620,41.10621557,181.9,181.89,0.03]
[1755600366818,15.10621557,181.89,181.82,0.66]
[1755600366986,22.9053084,181.89,181.82,0.66]
[1755600367187,33.91039972,181.89,181.82,0.66]
[1755600367413,5.92972639,181.83,181.82,0.66]
[1755600367716,38.88,181.86,181.82,0.66]
[1755600368507,38.88,181.86,181.82,6.58972639]
[1755600368714,44.80972639,181.86,181.83,0.69]
[1755600368917,44.80972639,181.86,181.81,0.69]
[1755600368918,5.92972639,181.84,181.81,0.69]
[1755600369094,5.92972639,181.84,181.79,5.92972639]
[1755600369295,5.92972639,181.85,181.79,5.92972639]
[1755600369513,38.88,181.86,181.8,5.92972639]
[1755600369719,38.88,181.86,181.77,20.60760456]
[1755600369720,44.80972639,181.86,181.81,6.61972639]
[1755600369890,44.80972639,181.86,181.82,0.69]
[1755600370416,38.88,181.86,181.82,0.69]
[1755600371088,0.71,181.85,181.78,0.69]
[1755600371283,0.71,181.85,181.79,0.69]
[1755600371284,38.9,181.84,181.79,0.69]
[1755600371693,5.92972639,181.82,181.79,0.69]
[1755600372096,5.92972639,181.82,181.77,5.92972639]
[1755600372431,5.92972639,181.82,181.78,0.69]
[1755600373719,5.92972639,181.82,181.79,0.69]
[1755600374012,5.92972639,181.81,181.8,0.69]
[1755600374314,5.92972639,181.81,181.77,0.69]
[1755600374315,39.12,181.81,181.77,0.69]
[1755600374513,5.92972639,181.78,181.75,0.69]
[1755600374714,45.04972639,181.81,181.75,6.61972639]
[1755600375013,45.04972639,181.81,181.76,0.69]
[1755600375185,39.12,181.81,181.76,6.61972639]
[1755600375391,39.12,181.81,181.77,6.61972639]
[1755600375590,39.12,181.81,181.78,0.69]
[1755600376212,39.12,181.81,181.79,0.03]
[1755600376409,39.12,181.81,181.79,0.72]
[1755600378419,39.12,181.81,181.79,0.03]
[1755600378610,39.12,181.81,181.8,0.69]
[1755600379412,5.92972639,181.83,181.8,0.69]
[1755600379617,39.1,181.82,181.79,0.03]
[1755600379912,39.1,181.82,181.79,0.72]
[1755600380134,45.73972639,181.82,181.79,0.03]
[1755600380303,0.71,181.81,181.79,0.03]
[1755600381005,5.92972639,181.81,181.79,0.03]
[1755600381325,0.71,181.8,181.79,0.03]
[1755600382500,5.92972639,181.81,181.79,0.03]
[1755600382913,6.63972639,181.81,181.79,0.03]
[1755600383405,6.63972639,181.8,181.79,0.03]
[1755600385001,5.92972639,181.8,181.79,0.03]
[1755600387419,0.71,181.81,181.79,0.03]
[1755600387628,39.1,181.82,181.79,0.03]
[1755600387806,5.92972639,181.81,181.79,0.03]
[1755600388004,5.92972639,181.8,181.79,0.03]
[1755600388515,6.63972639,181.8,181.79,0.03]
[1755600389524,0.71,181.8,181.79,0.03]
[1755600389722,5.92972639,181.81,181.79,0.03]
[1755600389923,6.63972639,181.81,181.79,0.03]
[1755600391503,0.71,181.8,181.79,0.03]
[1755600391708,5.92972639,181.81,181.79,0.03]
[1755600391907,6.63972639,181.81,181.79,0.03]
[1755600392103,5.92972639,181.8,181.79,0.03]
[1755600392520,6.63972639,181.81,181.79,0.03]
[1755600393021,6.63972639,181.8,181.79,0.03]
[1755600393629,5.92972639,181.81,181.79,0.03]
[1755600394542,26.0,181.83,181.8,0.69]
[1755600394839,43.13018768,181.82,181.8,6.61972639]
[1755600395143,39.02,181.83,181.81,6.61972639]
[1755600395335,39.02,181.84,181.82,6.61972639]
[1755600395501,39.02,181.84,181.8,6.61972639]
[1755600395705,39.02,181.84,181.81,0.69]
[1755600395906,39.02,181.84,181.82,0.69]
[1755600396326,39.02,181.84,181.83,0.69]
[1755600396542,43.11199953,181.84,181.83,0.69]
[1755600396746,39.02,181.87,181.83,6.61972639]
[1755600396919,4.09166063,181.86,181.83,5.92972639]
[1755600397121,4.09166063,181.86,181.84,0.69]
[1755600397317,4.09166063,181.86,181.83,6.61972639]
[1755600397538,4.80166063,181.86,181.83,0.69]
[1755600397912,4.09308667,181.85,181.83,0.69]
[1755600398111,39.02,181.87,181.83,0.69]
[1755600398416,4.75352267,181.86,181.83,0.69]
[1755600398618,4.09464013,181.85,181.82,5.92972639]
[1755600398817,0.66,181.86,181.82,6.64972639]
[1755600399029,4.75464159,181.86,181.82,6.64972639]
[1755600400223,4.75464159,181.86,181.81,5.92972639]
[1755600400224,0.66,181.85,181.81,5.92972639]
[1755600400423,5.92972639,181.83,181.79,0.03]
[1755600400732,4.7584475,181.82,181.79,0.03]
[1755600401313,6.58972639,181.81,181.79,0.03]
[1755600401517,5.92972639,181.8,181.79,0.03]
[1755600401740,6.58972639,181.8,181.79,0.03]
[1755600402113,10.690867,181.8,181.79,0.03]
[1755600404252,10.69559327,181.8,181.79,0.03]
[1755600406354,14.39264349,181.8,181.79,0.03]
[1755600407361,19.89716142,181.8,181.79,0.03]
[1755600407529,40.935495,181.8,181.79,0.03]
[1755600407725,26.0,181.77,181.75,0.03]
[1755600407948,48.58677661,181.76,181.75,0.03]
[1755600408251,53.35900299,181.76,181.75,0.03]
[1755600408466,53.35893993,181.76,181.75,0.03]
[1755600410459,58.86070049,181.76,181.75,0.03]
[1755600410754,58.86190238,181.76,181.75,0.03]
[1755600411280,73.97301944,181.76,181.75,0.03]
[1755600412540,73.97301944,181.76,181.73,0.03]
[1755600412541,26.0,181.74,181.73,0.03]
[1755600412738,78.68504331,181.74,181.73,0.03]
[1755600412972,79.34504331,181.74,181.73,0.03]
[1755600414734,84.84740932,181.74,181.73,0.03]
[1755600414935,99.95362489,181.74,181.73,0.03]
[1755600416757,99.94652792,181.74,181.73,0.03]
[1755600418348,95.84025968,181.74,181.73,0.03]
[1755600418554,99.9438396,181.74,181.73,0.03]
[1755600420938,94.44147359,181.74,181.73,0.03]
[1755600421141,39.73525802,181.74,181.73,0.03]
[1755600421353,78.61525802,181.74,181.73,0.03]
[1755600422549,94.38147359,181.74,181.73,0.03]
[1755600422853,99.8838396,181.74,181.73,0.03]
[1755600423056,15.10621557,181.73,181.72,0.1]
[1755600423246,23.5717472,181.73,181.72,0.1]
[1755600423450,29.50147359,181.73,181.72,0.1]
[1755600423948,14.39525802,181.73,181.72,0.1]
[1755600424147,13.73525802,181.73,181.72,0.1]
[1755600424460,29.50147359,181.73,181.72,0.1]
[1755600424867,34.99901451,181.73,181.72,0.1]
[1755600426673,29.49634572,181.73,181.72,0.1]
[1755600426875,25.13439401,181.73,181.72,0.1]
[1755600427173,64.07439401,181.73,181.72,0.1]
[1755600427566,64.73439401,181.73,181.72,0.1]
[1755600427754,64.07439401,181.73,181.72,0.1]
[1755600428572,70.2770628,181.73,181.72,0.1]
[1755600429860,64.07439401,181.73,181.72,0.1]
[1755600430200,64.77439401,181.73,181.72,0.1]
[1755600430561,58.14466762,181.73,181.72,0.1]
[1755600430762,64.07439401,181.73,181.72,0.1]
[1755600430959,48.96817844,181.73,181.72,0.76]
[1755600431580,48.96817844,181.73,181.72,0.1]
[1755600433460,43.03845205,181.73,181.72,0.1]
[1755600433659,48.96817844,181.73,181.72,0.76]
[1755600434379,48.96410155,181.73,181.72,0.76]
[1755600434885,48.9639444,181.73,181.72,0.76]
[1755600435067,48.9639444,181.73,181.72,0.1]
[1755600435884,48.9639444,181.73,181.72,0.76]
[1755600436089,44.86972639,181.73,181.72,0.76]
[1755600436973,38.94,181.73,181.72,0.76]
[1755600437361,147.80621557,181.79,181.72,6.68972639]
[1755600437362,5.92972639,181.78,181.72,6.68972639]
[1755600437701,38.9,181.77,181.73,0.66]
[1755600438377,38.9,181.76,181.73,6.58972639]
[1755600438585,38.9,181.75,181.74,0.66]
[1755600438893,21.30589265,181.83,181.74,6.58972639]
[1755600438894,5.92972639,181.81,181.74,6.58972639]
[1755600439066,0.7,181.83,181.76,5.92972639]
[1755600439067,5.92972639,181.82,181.76,5.92972639]
[1755600439267,5.92972639,181.82,181.72,5.60286263]
[1755600439268,48.92347818,181.81,181.77,0.66]
[1755600439469,44.82972639,181.81,181.77,0.66]
[1755600440591,38.9,181.81,181.77,0.66]
[1755600443598,38.9,181.81,181.77,6.58972639]
[1755600443777,38.9,181.81,181.78,0.66]
[1755600444304,38.9,181.81,181.79,0.66]
[1755600445082,38.9,181.81,181.8,0.66]
[1755600445585,38.9,181.81,181.77,5.92972639]
[1755600445893,38.9,181.81,181.78,0.66]
[1755600446094,38.9,181.81,181.79,0.66]
[1755600446265,38.9,181.81,181.8,0.66]
[1755600446588,5.92972639,181.83,181.8,0.66]
[1755600446769,38.82,181.81,181.8,0.66]
[1755600447993,38.82,181.81,181.78,6.58972639]
[1755600448172,38.82,181.81,181.79,0.66]
[1755600448575,38.82,181.81,181.8,0.66]
[1755600449187,0.06,181.84,181.8,6.58972639]
[1755600449387,0.06,181.84,181.82,5.92972639]
[1755600449687,0.06,181.84,181.83,5.92972639]
[1755600449889,0.06,181.84,181.83,6.58972639]
[1755600450271,0.06,181.84,181.83,0.66]
[1755600450579,0.06,181.84,181.83,6.58972639]
[1755600453480,0.06,181.84,181.81,0.66]
[1755600453703,0.06,181.84,181.81,5.92972639]
[1755600453879,0.06,181.84,181.82,6.58972639]
[1755600455190,0.06,181.84,181.82,0.66]
[1755600457700,0.06,181.84,181.83,0.66]
[1755600458200,0.06,181.84,181.83,6.58972639]